bitfinex/quotes_ETHUSD_20241130
["timestamp","ask_amount","ask_price","bid_price","bid_amount"]
[1732982069967,7.08851157,3680.6,3680.1,0.05597419]
[1732982070269,7.08851157,3680.6,3680.2,1.5285]
[1732982070596,7.08851157,3680.6,3680.3,0.0558593]
[1732982070803,7.08851157,3681.1,3680.4,1.5285]
[1732982071091,7.63179857,3681.1,3680.4,1.5285]
[1732982071602,2.71665,3681.0,3680.4,1.5285]
[1732982071795,2.71678,3680.9,3680.4,1.5285]
[1732982072359,9.21019857,3681.1,3680.4,1.5285]
[1732982072676,1.19266386,3681.0,3680.4,1.5285]
[1732982073990,8.28117543,3681.0,3680.4,1.5285]
[1732982076965,7.08851157,3680.9,3680.4,1.5285]
[1732982080982,8.02365526,3680.9,3680.4,1.5285]
[1732982083603,0.93514369,3680.6,3680.4,1.5285]
[1732982084038,0.36520137,3680.5,3680.4,1.5285]
[1732982084593,0.36520137,3680.5,3679.6,1.5088]
[1732982084794,0.93514369,3680.3,3679.6,1.5088]
[1732982085017,5.19278369,3680.3,3679.6,1.5088]
[1732982085329,3.65253369,3680.0,3679.6,1.5088]
[1732982085634,0.36525337,3679.9,3679.6,1.5088]
[1732982085830,0.36525337,3679.9,3678.6,1.5088]
[1732982086456,0.36525337,3679.9,3678.8,1.5088]
[1732982091036,1.5404,3679.8,3678.8,1.5088]
[1732982091400,4.25794,3679.8,3678.8,1.5088]
[1732982091641,0.73406334,3679.7,3678.8,1.5088]
[1732982092998,7.08851157,3679.8,3678.8,1.5088]
[1732982095736,7.08851157,3679.8,3679.0,1.6013]
[1732982095937,7.08851157,3679.8,3679.1,0.05468301]
[1732982096182,7.08851157,3679.8,3679.2,1.6388]
[1732982097838,7.08851157,3679.8,3678.9,0.55]
[1732982098043,7.08851157,3680.6,3679.4,2.07335192]
[1732982098580,7.08851157,3680.6,3679.5,0.05265183]
[1732982100836,7.08851157,3680.6,3679.6,1.6388]
[1732982101047,7.08851157,3680.6,3679.6,1.69139436]
[1732982101840,7.08851157,3680.6,3679.4,1.51051268]
[1732982102053,7.08851157,3680.6,3679.7,0.05078375]
[1732982102253,7.08851157,3680.6,3679.5,0.20406558]
[1732982102589,7.08851157,3680.6,3679.6,0.05084122]
[1732982104163,7.08851157,3681.0,3679.6,0.05084122]
[1732982104344,7.08610942,3681.0,3679.6,0.05084122]
[1732982104544,1.13567594,3680.9,3679.6,0.25452317]
[1732982105079,1.13567594,3680.9,3679.7,1.6388]
[1732982105374,1.13567594,3680.9,3679.8,0.04894417]
[1732982105687,1.13567594,3680.9,3679.9,1.6388]
[1732982105985,1.13567594,3680.9,3680.0,0.04882925]
[1732982108452,1.5541,3681.4,3680.6,0.93499905]
[1732982108649,1.5541,3681.4,3680.8,0.93499905]
[1732982108981,1.5541,3681.7,3680.8,0.93499905]
[1732982109183,0.86402094,3681.6,3680.8,0.93499905]
[1732982110181,0.86402094,3681.6,3680.9,0.2307]
[1732982111886,0.02719623,3681.5,3680.9,0.2307]
[1732982112454,0.86402094,3681.6,3680.9,0.2307]
[1732982112674,1.5541,3681.4,3680.3,0.93499905]
[1732982112987,0.02719623,3681.3,3680.3,0.93499905]
[1732982113343,7.08610942,3681.5,3680.7,0.93499905]
[1732982113547,7.08610942,3681.5,3680.8,0.2307]
[1732982116152,7.08610942,3681.5,3680.3,0.2307]
[1732982116461,1.5868,3681.2,3680.4,0.04695066]
[1732982116679,0.46024485,3681.1,3680.3,0.2307]
[1732982119149,7.54635427,3681.1,3680.3,0.2307]
[1732982119348,7.51915804,3681.1,3680.3,0.2307]
[1732982119577,0.02719623,3681.0,3680.3,0.2307]
[1732982120051,7.51915804,3681.1,3680.3,0.2307]
[1732982121161,7.08610942,3681.1,3680.3,0.2307]
[1732982122185,1.5868,3681.2,3680.3,0.2307]
[1732982122387,7.08610942,3681.5,3680.3,0.2307]
[1732982122598,8.67290942,3681.5,3680.3,0.2307]
[1732982123702,7.08610942,3681.5,3680.3,0.2307]
[1732982123897,0.98088927,3681.4,3680.3,0.2307]
[1732982124244,0.95369304,3681.4,3680.3,0.2307]
[1732982125136,0.98088927,3681.4,3680.3,0.2307]
[1732982125697,7.08610942,3681.5,3680.6,2.07116145]
[1732982125942,7.08610942,3681.5,3680.7,0.2307]
[1732982127399,7.08610942,3681.5,3680.8,0.04665045]
[1732982127736,7.08610942,3681.9,3680.9,0.2307]
[1732982128272,7.08610942,3681.9,3681.0,0.04653559]
[1732982128563,1.16607217,3681.8,3681.0,0.04653559]
[1732982128778,1.16607217,3681.8,3681.1,0.04647817]
[1732982128931,1.16607217,3681.8,3680.9,0.2307]
[1732982129441,1.16607217,3681.8,3681.0,0.04653559]
[1732982129749,1.13887594,3681.8,3681.0,0.04653559]
[1732982129954,1.13887594,3681.8,3681.1,0.2307]
[1732982130141,0.98117854,3681.7,3681.1,0.2307]
[1732982130555,0.02719623,3681.6,3681.1,0.2307]
[1732982130945,0.98117854,3681.7,3681.1,0.2307]
[1732982131344,0.02719623,3681.6,3681.1,0.2307]
[1732982131545,1.5868,3682.0,3681.1,0.2307]
[1732982131731,0.02719623,3681.9,3681.1,0.2307]
[1732982132068,2.71601,3681.9,3681.1,0.2307]
[1732982132370,2.71601,3681.9,3680.4,0.2307]
[1732982132371,2.74328623,3681.8,3680.4,0.2307]
[1732982132665,1.5868,3681.6,3681.2,0.04640348]
[1732982132869,9.80263942,3681.2,3680.4,0.2307]
[1732982133068,2.71673,3680.9,3679.6,0.2307]
[1732982133274,7.08610942,3680.8,3679.6,0.2307]
[1732982133434,1.5868,3680.6,3679.6,0.2307]
[1732982133631,1.61399623,3680.6,3679.6,0.2307]
[1732982133845,1.5868,3680.6,3679.6,0.2307]
[1732982135151,0.98028394,3680.7,3679.6,0.24491408]
[1732982135672,0.98028394,3680.7,3679.6,0.2307]
[1732982135971,8.67290942,3680.8,3679.7,0.2307]
[1732982136136,8.67290942,3680.8,3679.8,0.04726777]
[1732982136676,11.38975942,3680.8,3679.8,0.04726777]
[1732982136871,0.02719623,3680.7,3679.8,0.04726777]
[1732982137179,7.11330565,3680.7,3679.8,0.04726777]
[1732982137330,1.14169557,3680.6,3679.8,0.04726777]
[1732982137530,0.02719623,3680.5,3679.8,0.04726777]
[1732982137767,1.14169557,3680.6,3679.8,0.04726777]
[1732982139977,7.08610942,3680.7,3679.8,0.04726777]
[1732982140183,7.08610942,3680.6,3679.9,0.2307]
[1732982140780,7.08610942,3680.6,3680.0,0.04724585]
[1732982143092,7.08610942,3680.7,3680.0,0.04724585]
[1732982143287,0.02719623,3680.6,3680.0,0.04724585]
[1732982143593,0.87001057,3680.5,3680.0,0.04724585]
[1732982144484,7.08610942,3680.7,3680.0,0.04724585]
[1732982146056,7.08610942,3681.0,3680.1,0.2307]
[1732982146563,2.71651,3681.2,3679.3,0.02717182]
[1732982146564,1.5099,3681.3,3680.3,0.2307]
[1732982147989,1.53709623,3681.3,3680.3,0.2307]
[1732982148188,2.71663,3681.1,3680.3,0.2307]
[1732982148375,0.72421385,3681.0,3680.3,0.2307]
[1732982148575,1.5099,3680.9,3680.3,0.2307]
[1732982148777,0.02719623,3680.8,3680.3,0.2307]
[1732982149451,1.5099,3680.9,3680.3,0.2307]
[1732982151267,0.69701762,3681.0,3680.3,0.2307]
[1732982151604,1.5099,3681.3,3680.3,0.2307]
[1732982152191,8.59600942,3681.3,3680.3,0.2307]
[1732982152592,7.08610942,3681.3,3680.3,0.2307]
[1732982155079,0.02719623,3681.2,3680.3,0.2307]
[1732982155407,0.02719623,3681.6,3680.3,0.2307]
[1732982155592,1.18889639,3681.5,3680.4,0.2307]
[1732982157473,0.02719623,3681.4,3680.4,0.2307]
[1732982158108,8.27500581,3681.5,3680.4,0.2307]
[1732982158670,7.08610942,3681.5,3680.4,0.2307]
[1732982160292,0.02719623,3681.4,3680.4,0.2307]
[1732982160620,7.08610942,3681.5,3680.4,0.2307]
[1732982160924,0.02719623,3681.4,3680.4,0.2307]
[1732982161091,8.72880942,3681.3,3680.4,0.2307]
[1732982161409,1.17443279,3681.2,3680.4,0.2307]
[1732982161816,1.14723656,3681.2,3680.4,0.2307]
[1732982161975,0.02719623,3681.1,3680.4,0.2307]
[1732982165216,8.23334598,3681.2,3680.4,0.2307]
[1732982165417,0.02719623,3681.1,3680.4,0.2307]
[1732982165642,0.99032422,3681.0,3680.4,0.2307]
[1732982165953,0.02719623,3680.9,3680.4,0.2307]
[1732982167640,0.99032422,3681.0,3680.4,0.2307]
[1732982168745,0.02719623,3680.9,3680.4,0.2307]
[1732982170002,8.72880942,3680.8,3679.3,2.30186145]
[1732982170205,0.97463299,3680.7,3679.4,0.2307]
[1732982170832,8.06074241,3680.7,3679.4,0.2307]
[1732982171047,10.77762241,3680.7,3679.4,0.2307]
[1732982171205,8.06074241,3680.7,3679.4,0.2307]
[1732982171402,0.02719623,3680.6,3679.5,0.27686869]
[1732982171608,1.24475186,3680.5,3679.5,0.2307]
[1732982171835,0.02719623,3680.4,3679.5,0.2307]
[1732982172031,1.24475186,3680.5,3679.5,0.2307]
[1732982172415,0.02719623,3680.4,3679.5,0.2307]
[1732982173361,1.24475186,3680.5,3679.5,0.2307]
[1732982173713,1.20223743,3680.4,3679.5,0.2307]
[1732982174849,3.91934743,3680.4,3679.5,0.2307]
[1732982176032,1.5403,3680.3,3679.5,0.2307]
[1732982176214,8.62640942,3680.3,3679.5,0.2307]
[1732982178548,0.02719623,3680.2,3679.5,0.2307]
[1732982178748,1.25729531,3680.1,3679.5,0.2307]
[1732982179052,0.02719623,3680.0,3679.5,0.2307]
[1732982180972,0.02719623,3680.0,3678.0,0.2307]
[1732982181272,1.5403,3679.8,3678.9,0.2307]
[1732982181471,0.02719623,3679.7,3678.9,0.2307]
[1732982181675,2.67739957,3679.8,3678.9,0.2307]
[1732982181843,2.71762,3679.7,3678.9,0.2307]
[1732982182035,2.7045958,3679.8,3678.9,0.2307]
[1732982182235,2.71761,3679.7,3678.9,0.2307]
[1732982182558,1.25083152,3679.6,3678.9,0.2307]
[1732982184959,7.08610942,3679.5,3678.9,0.2307]
[1732982185436,7.08610942,3679.5,3678.5,0.2307]
[1732982185437,1.5403,3679.4,3678.5,0.2307]
[1732982185745,0.02719623,3679.3,3678.5,0.2307]
[1732982185985,8.22324699,3679.2,3678.5,0.2307]
[1732982186148,0.02719623,3679.1,3678.5,0.2307]
[1732982186657,8.22324699,3679.2,3678.5,0.2307]
[1732982187480,7.08610942,3679.2,3678.5,0.2307]
[1732982187648,7.08610942,3679.2,3678.8,2.07328066]
[1732982187852,7.08610942,3679.2,3678.9,0.2307]
[1732982188179,7.08610942,3679.2,3678.9,0.27585247]
[1732982188543,7.08610942,3680.1,3678.9,0.27585247]
[1732982188873,2.27610717,3680.0,3678.9,0.2307]
[1732982189374,7.08610942,3679.9,3678.1,0.2714]
[1732982189538,0.02719623,3679.8,3678.6,2.07328066]
[1732982189736,0.02719623,3679.8,3678.3,0.2714]
[1732982189940,0.02719623,3679.8,3678.7,0.04528934]
[1732982190139,1.20796766,3679.7,3678.3,0.2714]
[1732982190342,1.5403,3679.5,3678.3,0.2714]
[1732982190589,0.02719623,3679.4,3678.3,0.2714]
[1732982190788,1.5403,3679.5,3678.3,0.2714]
[1732982190963,7.08610942,3679.2,3677.8,2.07328066]
[1732982191163,0.71133057,3679.1,3677.8,2.07328066]
[1732982191482,0.7385268,3679.1,3677.8,2.07328066]
[1732982191881,0.71133057,3679.1,3677.8,2.07328066]
[1732982192065,0.7385268,3679.1,3677.8,2.07328066]
[1732982192269,0.71133057,3679.1,3677.8,2.07328066]
[1732982192560,1.5403,3678.9,3677.8,2.07328066]
[1732982193441,0.02719623,3678.8,3677.8,2.07328066]
[1732982193642,1.5403,3678.9,3677.8,2.07328066]
[1732982194241,8.62640942,3678.9,3677.8,2.07328066]
[1732982195644,7.08610942,3678.8,3677.4,2.07328066]
[1732982195842,0.96781157,3678.7,3677.5,0.04601086]
[1732982196797,0.94061534,3678.7,3677.5,0.04601086]
[1732982200183,7.08610942,3678.6,3677.5,0.04601086]
[1732982200983,1.6243,3678.5,3677.5,0.04601086]
[1732982206282,8.71040942,3678.5,3677.5,0.04601086]
[1732982209182,2.58940248,3678.5,3677.5,0.04601086]
[1732982211126,2.61659871,3678.5,3677.5,0.04601086]
[1732982211621,2.58940248,3678.5,3677.5,0.04601086]
[1732982212197,8.0512119,3678.5,3677.5,0.04601086]
[1732982212397,1.5484,3678.4,3677.5,0.04601086]
[1732982215735,1.5484,3678.4,3676.8,0.50460631]
[1732982216023,1.5484,3678.4,3677.6,0.04450452]
[1732982216324,0.15484,3678.3,3677.7,0.04444287]
[1732982216624,0.15484,3678.3,3677.4,2.07328066]
[1732982216935,1.5484,3678.4,3677.7,0.9361523]
[1732982219917,1.5484,3678.4,3677.8,0.04438946]
[1732982220425,1.5484,3678.4,3677.7,0.9361523]
[1732982222153,1.5108,3679.7,3678.3,1.8723046]
[1732982222339,0.02719623,3679.6,3678.8,0.9361523]
[1732982222485,8.59690942,3679.7,3678.8,0.9361523]
[1732982222837,1.5108,3679.6,3678.8,0.9361523]
[1732982224922,8.59690942,3679.6,3678.5,2.07311472]
[1732982225127,1.5108,3679.6,3678.9,0.04375106]
[1732982225431,1.5108,3679.6,3678.6,0.2714]
[1732982225648,1.5108,3679.6,3679.0,0.04369357]
[1732982225850,1.5108,3679.6,3678.9,2.07311472]
[1732982226151,1.5108,3679.6,3679.0,0.04369357]
[1732982229847,1.5108,3679.6,3679.0,0.2553744]
[1732982230409,1.5108,3680.5,3679.0,0.2553744]
[1732982230614,1.5108,3680.5,3679.0,0.04369357]
[1732982230823,1.5108,3680.5,3678.9,2.07311472]
[1732982231013,1.5108,3680.3,3678.9,2.07311472]
[1732982231237,1.5108,3680.1,3678.9,2.07311472]
[1732982233330,0.02719623,3680.0,3678.9,2.07311472]
[1732982233534,1.5108,3680.1,3678.9,2.07311472]
[1732982233731,0.15108,3680.0,3678.9,2.07311472]
[1732982235927,0.17827623,3680.0,3678.9,2.07311472]
[1732982238672,0.15108,3680.0,3678.9,2.07311472]
[1732982238866,0.17827623,3680.0,3678.9,2.07311472]
[1732982239563,8.64760942,3679.9,3678.6,0.2714]
[1732982239767,2.4712848,3679.8,3678.6,0.2714]
[1732982240881,2.4712848,3679.8,3678.7,0.04223384]
[1732982241886,2.4712848,3679.8,3678.6,0.2714]
[1732982242203,2.4712848,3679.8,3678.7,0.04223384]
[1732982244865,1.5615,3679.7,3679.0,0.93552855]
[1732982245191,0.02719623,3679.6,3679.1,0.04200387]
[1732982245390,0.02719623,3679.6,3679.0,0.93552855]
[1732982245896,0.02719623,3679.6,3679.1,0.04200387]
[1732982246097,2.53234742,3679.7,3679.1,0.04200387]
[1732982246303,2.53234742,3679.7,3678.9,0.93552855]
[1732982246498,0.96184568,3679.6,3678.9,0.93552855]
[1732982246666,0.96184568,3679.6,3679.0,0.04140236]
[1732982246866,0.96184568,3679.6,3679.2,0.93552855]
[1732982247067,1.5615,3679.7,3679.2,0.93552855]
[1732982248306,0.02719623,3679.6,3679.2,0.93552855]
[1732982249205,1.58869623,3679.7,3678.9,0.93552855]
[1732982251269,7.11330565,3679.7,3678.9,0.93552855]
[1732982251475,1.5615,3679.6,3678.9,0.93552855]
[1732982251777,1.5615,3679.4,3678.9,0.93552855]
[1732982253801,0.02719623,3679.3,3678.9,0.93552855]
[1732982254420,8.64760942,3679.4,3678.9,0.93552855]
[1732982260622,7.08610942,3679.4,3679.2,0.93552855]
[1732982263434,1.5556,3679.6,3679.2,0.93552855]
[1732982263744,0.86417094,3679.6,3679.2,0.93552855]
[1732982264454,1.5556,3679.9,3679.5,0.93552855]
[1732982266560,1.5556,3680.3,3679.5,0.93552855]
[1732982266850,0.02719623,3680.2,3679.3,0.93552855]
[1732982269117,8.64170942,3680.1,3679.2,0.93552855]
[1732982269316,0.86689057,3680.0,3679.2,0.93552855]
[1732982271063,0.8940868,3680.0,3679.2,0.93552855]
[1732982271221,0.86689057,3680.0,3679.2,0.93552855]
[1732982272330,7.95299999,3680.0,3679.2,0.93552855]
[1732982272943,7.95299999,3680.0,3679.4,0.93552855]
[1732982273150,0.95086,3679.9,3679.4,0.93552855]
[1732982277144,0.95086,3679.9,3678.5,0.2714]
[1732982277145,0.95086,3679.9,3679.6,0.93552855]
[1732982280306,0.02719623,3679.8,3679.4,0.93552855]
[1732982282071,0.95086,3679.9,3679.4,0.93552855]
[1732982282765,0.97805623,3679.9,3679.4,0.93552855]
[1732982283093,0.96197657,3679.8,3679.4,0.93552855]
[1732982285558,0.9891728,3679.8,3679.4,0.93552855]
[1732982285830,0.96197657,3679.8,3679.4,0.93552855]
[1732982285987,0.9891728,3679.8,3679.4,0.93552855]
[1732982286330,1.6213,3679.7,3679.4,0.93552855]
[1732982286478,0.02719623,3679.6,3679.4,0.93552855]
[1732982290316,1.6213,3679.7,3679.4,0.93552855]
[1732982291030,0.02719623,3679.6,3679.4,0.93552855]
[1732982291329,0.16484962,3679.6,3679.4,0.93552855]
[1732982294013,1.6213,3679.7,3679.4,0.93552855]
[1732982296640,0.02719623,3679.6,3679.4,0.93552855]
[1732982296838,1.6213,3679.7,3679.4,0.93552855]
[1732982300604,1.6213,3679.7,3679.5,0.0411233]
[1732982300823,0.02719623,3679.6,3679.5,0.0411233]
[1732982301171,0.19204585,3679.6,3679.2,0.93552855]
[1732982301324,0.19204585,3679.6,3679.3,0.04123822]
[1732982302020,0.19204585,3679.6,3679.1,0.93552855]
[1732982302220,0.16484962,3679.6,3679.2,0.04195214]
[1732982305662,0.16484962,3679.6,3679.1,0.93552855]
[1732982305956,1.6213,3679.7,3679.1,0.93552855]
[1732982305957,0.17861496,3679.5,3679.2,0.04195214]
[1732982306157,0.17861496,3679.5,3679.1,0.93552855]
[1732982310974,1.5932,3679.4,3679.1,0.93552855]
[1732982311333,1.5932,3679.4,3678.3,0.2714]
[1732982311532,1.5932,3679.4,3678.9,0.93552855]
[1732982311846,1.5932,3679.4,3679.0,0.04207538]
[1732982312636,7.08610942,3679.1,3679.0,0.04207538]
[1732982312837,1.5932,3678.9,3677.9,0.93552855]
[1732982313063,7.08610942,3678.8,3678.5,0.93552855]
[1732982313231,7.08610942,3678.8,3677.4,0.5299787]
[1732982313431,0.02719623,3678.7,3678.1,0.93552855]
[1732982313662,1.5932,3678.6,3678.1,0.93552855]
[1732982315852,0.02719623,3678.5,3678.0,0.93552855]
[1732982316056,0.02719623,3678.5,3678.1,0.03722198]
[1732982316302,1.628,3678.4,3677.4,0.93552855]
[1732982316600,1.628,3678.2,3677.4,0.93552855]
[1732982316896,1.628,3678.2,3677.0,0.2714]
[1732982316897,1.628,3678.2,3677.7,0.93552855]
[1732982317187,0.02719623,3678.1,3677.7,0.93552855]
[1732982318894,0.02719623,3678.1,3677.4,0.93552855]
[1732982319295,0.02719623,3678.1,3676.9,0.82242062]
[1732982319495,1.79351962,3678.0,3677.3,0.93552855]
[1732982320357,1.628,3677.8,3677.3,0.93552855]
[1732982320986,1.628,3677.8,3676.5,0.42503766]
[1732982320987,1.628,3677.8,3677.1,0.93552855]
[1732982321194,0.02719623,3677.7,3677.1,0.93552855]
[1732982321490,1.628,3677.8,3677.2,0.03725878]
[1732982321868,1.628,3677.8,3677.1,0.93552855]
[1732982322252,1.628,3677.8,3676.5,0.42503766]
[1732982322555,1.628,3677.8,3677.0,0.93552855]
[1732982323759,1.65519623,3677.8,3677.0,0.93552855]
[1732982323959,1.628,3677.8,3677.0,0.93552855]
[1732982325302,1.628,3677.8,3677.3,0.93552855]
[1732982325457,7.08610942,3677.9,3677.3,0.93552855]
[1732982325458,7.08610942,3677.9,3677.6,0.93552855]
[1732982325777,7.08610942,3677.9,3677.8,0.93552855]
[1732982326179,7.08610942,3677.9,3677.8,0.97098813]
[1732982329604,1.628,3678.6,3677.8,0.97098813]
[1732982329795,1.628,3678.6,3677.6,0.18710571]
[1732982329796,1.628,3678.6,3678.1,0.93552855]
[1732982330365,1.6920604,3678.6,3676.6,0.55]
[1732982330559,1.6920604,3678.6,3678.1,0.93552855]
[1732982330800,2.56987738,3678.6,3678.1,0.93552855]
[1732982333708,2.50581698,3678.6,3678.2,0.93552855]
[1732982334013,0.93552855,3679.6,3677.3,0.93552855]
[1732982334014,8.71410942,3679.0,3678.4,0.93552855]
[1732982334419,0.03398047,3678.9,3678.4,0.93552855]
[1732982334907,0.9151955,3678.9,3678.2,0.93552855]
[1732982335111,0.03398047,3678.9,3678.2,0.93552855]
[1732982335784,0.09804087,3678.9,3677.5,0.5437674]
[1732982335993,0.09804087,3678.9,3678.3,0.03593756]
[1732982335994,1.6343,3678.8,3678.3,0.03593756]
[1732982336311,0.03398307,3678.7,3678.0,0.93552855]
[1732982336820,0.03398307,3678.7,3678.1,0.03539343]
[1732982337580,1.6343,3678.6,3678.1,0.03539343]
[1732982337782,1.6343,3678.6,3678.0,0.93552855]
[1732982337783,0.03398307,3678.5,3678.0,0.93552855]
[1732982337983,0.03398307,3678.5,3678.2,0.03533593]
[1732982338198,1.6343,3678.6,3678.0,0.93552855]
[1732982338383,1.6343,3678.6,3678.3,0.03527844]
[1732982338586,1.6343,3678.6,3678.0,0.93552855]
[1732982338779,0.03398309,3678.5,3678.0,0.93552855]
[1732982339314,1.6343,3678.4,3677.5,0.93552855]
[1732982339518,1.6343,3678.2,3677.5,0.93552855]
[1732982339691,1.6983604,3678.2,3677.5,0.93552855]
[1732982340919,0.03398882,3678.1,3677.6,0.03576221]
[1732982341119,1.6343,3678.0,3677.6,0.03576221]
[1732982341325,0.03398947,3677.9,3677.4,0.93552855]
[1732982341482,0.03398947,3677.9,3677.7,0.03636393]
[1732982341820,1.6343,3678.0,3677.8,0.0363064]
[1732982342028,1.6343,3678.0,3677.4,0.93552855]
[1732982342186,1.6343,3678.0,3677.9,0.03628253]
[1732982342530,1.6343,3678.0,3677.6,0.93552855]
[1732982343185,1.6343,3678.0,3677.4,0.93552855]
[1732982343421,0.03398949,3677.9,3677.4,0.93552855]
[1732982344126,1.6343,3678.0,3677.4,0.93552855]
[1732982345982,0.0339895,3677.9,3677.4,0.93552855]
[1732982349130,0.0339895,3677.9,3676.2,0.93552855]
[1732982349131,0.0980499,3677.9,3676.3,0.2714]
[1732982349423,1.6343,3677.8,3677.2,0.93552855]
[1732982349989,1.6343,3677.8,3677.2,0.93552855]
[1732982350901,2.51614618,3677.8,3677.2,0.93552855]
[1732982351228,0.03399194,3677.7,3677.2,0.93552855]
[1732982351446,1.6343,3677.6,3677.2,0.93552855]
[1732982353539,1.6343,3677.6,3677.3,0.93552855]
[1732982353847,1.6343,3677.6,3677.4,0.03469746]
[1732982356763,1.80413604,3677.6,3677.3,0.93552855]
[1732982359154,1.80413604,3677.6,3677.0,0.93552855]
[1732982360613,1.6343,3677.6,3677.0,0.93552855]
[1732982361030,0.03399203,3677.5,3677.0,0.93552855]
[1732982361770,1.6343,3677.6,3677.0,0.93552855]
[1732982365978,1.6343,3677.6,3677.1,0.03435761]
[1732982366384,1.6343,3677.6,3677.0,0.93552855]
[1732982366678,1.6343,3677.6,3677.1,0.03369827]
[1732982366974,1.5043,3677.1,3676.3,0.93552855]
[1732982367182,1.53829766,3677.1,3676.3,0.93552855]
[1732982369058,1.53829766,3677.1,3675.6,0.2714]
[1732982369358,1.53829766,3677.1,3676.4,0.03154655]
[1732982369676,1.5043,3676.9,3676.3,0.93552855]
[1732982370234,1.5043,3676.9,3676.4,0.03207152]
[1732982370430,1.5043,3676.9,3676.3,0.93552855]
[1732982370672,1.5043,3676.9,3676.5,0.03201393]
[1732982370874,0.03399772,3676.8,3676.0,0.93552855]
[1732982371077,1.5043,3676.7,3676.6,0.03195635]
[1732982371382,1.66453581,3676.7,3676.0,0.93552855]
[1732982371671,1.5043,3676.7,3676.0,0.93552855]
[1732982373481,0.03400166,3676.6,3676.0,0.93552855]
[1732982373844,1.5043,3676.5,3676.0,0.93552855]
[1732982374707,1.5043,3676.5,3675.8,0.5332072]
[1732982374708,1.5043,3676.5,3675.9,0.93552855]
[1732982374978,1.5043,3676.5,3675.8,0.5332072]
[1732982375511,1.6023647,3676.4,3675.8,0.5332072]
[1732982375658,1.6023647,3676.4,3675.5,0.93552855]
[1732982375858,1.5043,3676.1,3674.9,0.69860597]
[1732982376057,1.5545,3675.9,3675.2,0.93552855]
[1732982376255,1.6422,3675.7,3674.9,1.36273452]
[1732982376479,1.6422,3675.7,3675.3,0.53871394]
[1732982377482,0.03401028,3675.6,3675.3,0.53871394]
[1732982378501,0.03401028,3675.6,3674.9,0.93751712]
[1732982378859,0.03401028,3675.6,3674.9,0.00198857]
[1732982379041,0.0640604,3675.6,3674.9,0.93751712]
[1732982379488,1.6422,3675.7,3674.9,0.93751712]
[1732982379846,1.6422,3675.7,3675.0,0.55580783]
[1732982380188,1.7062604,3675.7,3675.0,0.55580783]
[1732982380492,1.7062604,3675.7,3674.9,0.93751712]
[1732982380693,1.87688644,3675.7,3674.9,0.93751712]
[1732982380933,1.87688644,3675.7,3674.9,0.00198857]
[1732982384650,1.87688644,3675.7,3675.1,0.93552855]
[1732982385154,1.6422,3675.7,3675.4,0.93552855]
[1732982385318,0.0640604,3676.0,3675.4,0.93552855]
[1732982385319,1.7062604,3676.0,3675.4,0.93552855]
[1732982385822,1.7062604,3676.0,3674.9,0.00198857]
[1732982385823,0.03400827,3675.9,3675.3,0.93552855]
[1732982387267,1.6422,3675.8,3675.3,0.93552855]
[1732982387433,0.0340083,3675.7,3675.3,0.93552855]
[1732982387654,0.0340083,3675.7,3675.4,0.03236076]
[1732982390256,0.0340083,3675.7,3675.3,0.93552855]
[1732982390918,1.6422,3675.7,3674.9,0.93751712]
[1732982391989,1.6422,3675.5,3674.9,0.93751712]
[1732982392535,0.03401307,3675.4,3674.9,0.00198857]
[1732982392843,1.6422,3675.3,3674.9,0.00198857]
[1732982393244,1.6422,3675.0,3674.9,0.00198857]
[1732982395450,1.67621709,3675.0,3674.9,0.00198857]
[1732982395654,1.81622775,3675.0,3674.9,0.00198857]
[1732982395886,1.85024672,3675.0,3674.9,0.00198857]
[1732982396594,1.81622775,3675.0,3674.9,0.00198857]
[1732982397259,1.85024778,3675.0,3674.9,0.00198857]
[1732982397687,1.85025005,3675.0,3674.9,0.00198857]
[1732982397870,1.91431077,3675.0,3674.9,0.00198857]
[1732982398693,1.5609,3674.0,3673.0,0.5436]
[1732982398846,1.5609,3674.0,3673.5,0.93552855]
[1732982399056,1.5609,3674.0,3673.0,0.5436]
[1732982399057,1.5609,3674.3,3673.8,0.93552855]
[1732982399902,1.5609,3674.3,3673.2,0.5436]
[1732982400111,1.5609,3674.3,3673.6,0.93552855]
[1732982400813,1.5609,3674.3,3673.9,0.03336193]
[1732982401312,1.5609,3674.3,3673.9,0.96889048]
[1732982404381,1.5609,3674.3,3673.9,0.03336193]
[1732982405175,1.5609,3674.3,3673.9,0.96889048]
[1732982405761,1.5609,3674.3,3673.9,0.03336193]
[1732982405966,2.43200698,3674.3,3673.9,0.03336193]
[1732982406515,0.03402501,3674.2,3673.9,0.03336193]
[1732982406750,0.09808541,3674.2,3673.9,0.03336193]
[1732982407017,0.0640604,3674.0,3673.9,0.03336193]
[1732982407176,7.12013443,3674.2,3673.9,0.03336193]
[1732982407177,7.15016982,3674.2,3673.9,0.03336193]
[1732982407514,1.5762,3674.7,3674.0,0.93552855]
[1732982407719,1.67428148,3674.7,3674.0,0.93552855]
[1732982408076,2.59622174,3674.7,3673.9,0.03336193]
[1732982408882,0.0640604,3674.4,3673.9,0.03336193]
[1732982409088,0.03402401,3674.3,3673.9,0.03336193]
[1732982409291,1.5762,3674.2,3673.9,0.03336193]
[1732982409504,0.0640604,3674.1,3673.9,0.03336193]
[1732982409674,0.03402687,3674.0,3673.9,0.03336193]
[1732982409877,0.0640604,3674.1,3673.9,0.03336193]
[1732982411117,1.5762,3674.2,3673.9,0.03336193]
[1732982411321,0.0640604,3674.1,3673.9,0.03336193]
[1732982411487,0.0640604,3674.3,3673.9,0.03336193]
[1732982411803,1.6402604,3674.2,3673.9,0.03336193]
[1732982412003,0.0640604,3674.0,3673.9,0.03336193]
[1732982412180,1.5762,3674.2,3673.9,0.03336193]
[1732982412618,7.08610942,3674.4,3674.1,0.93552855]
[1732982412825,1.5762,3674.7,3674.1,1.47912855]
[1732982413028,0.0640604,3674.8,3674.5,0.93552855]
[1732982413326,0.0640604,3675.0,3674.5,0.93552855]
[1732982413884,1.6402604,3675.3,3674.8,0.93552855]
[1732982414083,0.0640604,3675.5,3674.8,0.93552855]
[1732982414331,0.16402604,3675.4,3674.8,0.93552855]
[1732982414931,0.0640604,3675.5,3674.6,2.62114284]
[1732982415719,0.0640604,3675.5,3675.0,2.07754284]
[1732982415935,7.08610942,3675.8,3675.0,2.07754284]
[1732982416080,7.08610942,3675.8,3675.1,0.57582394]
[1732982416818,0.03401025,3675.7,3675.1,0.57582394]
[1732982417497,7.08610942,3675.8,3675.1,0.57582394]
[1732982417952,0.03401026,3675.7,3675.1,0.57582394]
[1732982419842,0.03401028,3675.8,3675.1,0.57582394]
[1732982421552,0.0640604,3675.9,3675.1,0.57582394]